bitfinex-derivatives/quotes_BTCF0:USTF0_20250910
["timestamp","ask_amount","ask_price","bid_price","bid_amount"]
[1757463966884,1.04666398,111280.0,111270.0,0.08262441]
[1757463967080,0.94015199,111280.0,111270.0,0.08262441]
[1757463967293,0.94415199,111280.0,111270.0,0.09162441]
[1757463967994,0.94715199,111280.0,111270.0,0.09162441]
[1757463968294,0.84064,111280.0,111270.0,0.09162441]
[1757463968497,1.41017597,111280.0,111270.0,0.009]
[1757463971096,1.51017597,111280.0,111270.0,0.009]
[1757463971292,1.51017597,111280.0,111230.0,0.03373545]
[1757463971293,1.51017597,111280.0,111230.0,0.01299]
[1757463971497,0.10651199,111240.0,111230.0,0.08253441]
[1757463971699,0.8358,111240.0,111230.0,0.08253441]
[1757463971997,0.94231199,111240.0,111230.0,0.08253441]
[1757463972204,0.8358,111240.0,111230.0,0.08253441]
[1757463972406,1.92719199,111280.0,111240.0,0.03408]
[1757463972594,0.10651199,111260.0,111250.0,0.03408]
[1757463972990,0.94215199,111260.0,111250.0,0.33256441]
[1757463973204,1.04866398,111260.0,111250.0,0.33256441]
[1757463973601,1.04866398,111260.0,111240.0,0.01302]
[1757463973798,0.10651199,111250.0,111240.0,0.06150441]
[1757463974109,0.10651199,111250.0,111240.0,0.06140441]
[1757463975105,0.10951199,111250.0,111240.0,0.06140441]
[1757463976007,0.11451199,111250.0,111240.0,0.06140441]
[1757463977699,0.11451199,111250.0,111240.0,0.08256441]
[1757463977897,0.008,111250.0,111240.0,0.54558839]
[1757463979110,0.008,111250.0,111240.0,0.63547969]
[1757463980413,2.16184,111280.0,111270.0,0.03408]
[1757463980609,0.34916,111280.0,111270.0,0.14059199]
[1757463980808,0.45567199,111280.0,111270.0,0.03408]
[1757463981815,0.45867199,111280.0,111270.0,0.03408]
[1757463982022,0.46367199,111280.0,111270.0,0.03408]
[1757463982916,0.92669597,111280.0,111260.0,0.0001]
[1757463983224,0.21302398,111270.0,111260.0,0.0001]
[1757463983422,0.46302398,111270.0,111250.0,0.0001]
[1757463983722,0.96186398,111260.0,111250.0,0.0001]
[1757463983921,0.96186398,111260.0,111240.0,0.01302]
[1757463984123,0.10651199,111250.0,111240.0,0.03709099]
[1757463984325,0.14912248,111250.0,111240.0,0.03699099]
[1757463984824,0.39912248,111250.0,111240.0,0.02407099]
[1757463985025,0.39912248,111250.0,111230.0,0.03709099]
[1757463985226,0.75184,111260.0,111240.0,0.006]
[1757463985425,0.14912248,111250.0,111240.0,0.0061]
[1757463985617,0.14912248,111250.0,111240.0,0.006]
[1757463985812,0.15412248,111250.0,111240.0,0.006]
[1757463986524,0.14912248,111250.0,111240.0,0.006]
[1757463986824,0.15212248,111250.0,111240.0,0.003]
[1757463987322,0.15212248,111250.0,111240.0,0.02707099]
[1757463987715,0.15212248,111250.0,111240.0,0.01592]
[1757463988120,0.15212248,111250.0,111240.0,0.04008617]
[1757463988321,0.15712248,111250.0,111240.0,0.04008617]
[1757463988912,0.008,111250.0,111240.0,0.04008617]
[1757463989124,0.15712248,111250.0,111240.0,0.04008617]
[1757463990527,0.15712248,111250.0,111240.0,0.09351511]
[1757463991022,0.008,111250.0,111240.0,0.09351511]
[1757463991325,0.008,111250.0,111240.0,0.55836262]
[1757463991530,0.008,111250.0,111240.0,0.57414901]
[1757463993228,0.008,111250.0,111240.0,0.52609368]
[1757463993821,0.008,111250.0,111240.0,0.3769712]
[1757463994126,0.008,111250.0,111240.0,0.52609368]
[1757463995032,0.40712248,111250.0,111240.0,0.06432652]
[1757463995227,0.40712248,111250.0,111240.0,0.04819477]
[1757463996426,0.40712248,111250.0,111240.0,0.03527477]
[1757463996626,0.40712248,111250.0,111240.0,0.02721198]
[1757463999324,0.15712248,111250.0,111240.0,0.02721198]
[1757464000332,0.15816018,111250.0,111240.0,0.02721198]
[1757464001033,0.15816018,111250.0,111240.0,0.06279198]
[1757464002631,0.008,111250.0,111240.0,0.28858]
[1757464002836,0.008,111250.0,111240.0,0.32085477]
[1757464003227,0.15816018,111250.0,111240.0,0.33698652]
[1757464005436,0.008,111250.0,111240.0,0.33698652]
[1757464005629,0.15816018,111250.0,111240.0,0.33698652]
[1757464007732,0.15816018,111250.0,111240.0,0.0352761]
[1757464007733,0.30832036,111250.0,111240.0,0.0352761]
[1757464007938,0.15816018,111250.0,111240.0,0.0352761]
[1757464010837,0.15816018,111250.0,111240.0,0.0487061]
[1757464011740,0.15816018,111250.0,111240.0,0.0708561]
[1757464011940,0.008,111250.0,111240.0,0.0708561]
[1757464012133,0.15816018,111250.0,111240.0,0.0708561]
[1757464013338,0.15816018,111250.0,111240.0,0.08698652]
[1757464014141,0.15816018,111250.0,111240.0,0.03858]
[1757464014943,0.15816018,111250.0,111240.0,0.07089647]
[1757464015243,0.15816018,111250.0,111240.0,0.06245379]
[1757464015544,0.15816018,111250.0,111240.0,0.04030379]
[1757464015842,0.15816018,111250.0,111240.0,0.02687375]
[1757464016043,0.15816018,111250.0,111240.0,0.04030375]
[1757464016240,0.008,111250.0,111240.0,0.04874625]
[1757464016446,0.15816018,111250.0,111240.0,0.05875116]
[1757464017440,0.15816018,111250.0,111240.0,0.04874625]
[1757464017746,0.15816018,111250.0,111240.0,0.03531625]
[1757464017946,0.15816018,111250.0,111240.0,0.04874625]
[1757464018246,0.008,111250.0,111240.0,0.03531625]
[1757464018447,0.32831456,111250.0,111240.0,0.03531625]
[1757464019146,0.32831456,111250.0,111240.0,0.04874625]
[1757464019351,0.32831456,111250.0,111240.0,0.07252014]
[1757464020944,0.16815728,111250.0,111240.0,0.09467014]
[1757464021246,0.008,111250.0,111240.0,0.63266845]
[1757464021850,0.16815728,111250.0,111240.0,0.63266845]
[1757464023050,0.16815728,111250.0,111240.0,0.31235389]
[1757464023250,0.16815728,111250.0,111240.0,0.63266845]
[1757464024453,0.008,111250.0,111240.0,0.46243008]
[1757464024946,0.008,111250.0,111240.0,0.31235389]
[1757464025252,0.008,111250.0,111240.0,0.46243008]
[1757464026056,0.008,111250.0,111240.0,0.55232108]
[1757464026252,0.008,111250.0,111240.0,0.378471]
[1757464026447,0.008,111250.0,111240.0,0.52854719]
[1757464026957,0.008,111250.0,111240.0,0.59303032]
[1757464030150,0.008,111250.0,111240.0,0.52854719]
[1757464030351,0.008,111250.0,111240.0,0.61665978]
[1757464030757,0.008,111250.0,111240.0,0.38777129]
[1757464031246,0.40807619,111250.0,111240.0,0.0514519]
[1757464031451,0.40807619,111250.0,111240.0,0.03530588]
[1757464031657,0.40807619,111250.0,111240.0,0.04826588]
[1757464034058,0.40807619,111250.0,111240.0,0.07116588]
[1757464035350,0.40807619,111250.0,111240.0,0.09479214]
[1757464035857,0.258,111250.0,111240.0,0.09479214]
[1757464036059,0.15807619,111250.0,111240.0,0.09479214]
[1757464040163,0.15807619,111250.0,111240.0,0.10470468]
[1757464040865,0.15807619,111250.0,111240.0,0.10533454]
[1757464041453,0.15807619,111250.0,111240.0,0.09479214]
[1757464041655,0.15807619,111250.0,111240.0,0.10533453]
[1757464042568,0.15807619,111250.0,111240.0,0.08243453]
[1757464043964,0.15807619,111250.0,111240.0,0.10533453]
[1757464044161,0.15807619,111250.0,111240.0,0.08243453]
[1757464044358,0.15807619,111250.0,111240.0,0.06947453]
[1757464044359,0.55815238,111250.0,111240.0,0.06947453]
[1757464044667,0.55815238,111250.0,111240.0,0.07290632]
[1757464044888,0.55815238,111250.0,111240.0,0.06482704]
[1757464045469,0.55815238,111250.0,111240.0,0.05085286]
[1757464046376,0.73859361,111250.0,111240.0,0.05085286]
[1757464048281,0.73859361,111250.0,111240.0,0.02662626]
[1757464049684,2.55211361,111250.0,111240.0,0.02662626]
[1757464050490,2.55211361,111250.0,111240.0,0.04068468]
[1757464050784,2.55211361,111250.0,111240.0,0.05122849]
[1757464053985,2.55211361,111250.0,111230.0,0.0288166]
[1757464054284,1.31275361,111240.0,111230.0,0.0288166]
[1757464054488,1.31275361,111240.0,111230.0,0.0242266]
[1757464054791,1.31267361,111240.0,111230.0,0.0242266]
[1757464055294,1.31267361,111240.0,111230.0,0.0272266]
[1757464055693,1.32186401,111240.0,111230.0,0.0272266]
[1757464055990,1.32686401,111240.0,111230.0,0.0272266]
[1757464057185,1.32986401,111240.0,111230.0,0.0242266]
[1757464057586,1.32950401,111240.0,111230.0,0.0242266]
[1757464058089,0.49778401,111240.0,111230.0,0.0600866]
[1757464058293,0.0171904,111240.0,111230.0,0.0600866]
[1757464058587,1.16910614,111240.0,111230.0,0.0600866]
[1757464059191,1.32930401,111240.0,111230.0,0.0600866]
[1757464059692,1.15987574,111240.0,111230.0,0.0600866]
[1757464059990,1.15971574,111240.0,111230.0,0.28586]
[1757464060790,0.008,111240.0,111230.0,0.28586]
[1757464061095,1.15967574,111240.0,111230.0,0.31816588]
[1757464062294,1.04783292,111240.0,111230.0,0.31816588]
[1757464062494,1.05183292,111240.0,111230.0,0.31816588]
[1757464066001,1.05183292,111240.0,111230.0,0.35268454]
[1757464066596,0.22055292,111240.0,111230.0,0.35268454]
[1757464066799,1.05103292,111240.0,111230.0,0.35268454]
[1757464068504,1.05103292,111240.0,111230.0,0.35717454]
[1757464070194,1.05103292,111240.0,111230.0,0.39550145]
[1757464070396,1.05103292,111240.0,111230.0,0.34704955]
[1757464071403,1.05103292,111240.0,111230.0,0.39550145]
[1757464074209,1.05103292,111240.0,111230.0,0.36319557]
[1757464074395,1.05103292,111240.0,111230.0,0.39554941]
[1757464074802,0.007,111240.0,111230.0,0.36319557]
[1757464075004,1.04951292,111240.0,111230.0,0.36319557]
[1757464075402,1.04951292,111240.0,111230.0,0.3388019]
[1757464076800,1.04943292,111240.0,111230.0,0.3388019]
[1757464077110,1.04919292,111240.0,111230.0,0.3388019]
[1757464077612,0.007,111240.0,111230.0,0.44557836]
[1757464077809,0.007,111240.0,111230.0,0.41541556]
[1757464078005,0.007,111240.0,111230.0,0.47989869]
[1757464081707,0.0001348,111260.0,111250.0,0.03619]
[1757464081905,0.93519126,111260.0,111250.0,0.11697778]
[1757464082101,0.93519126,111260.0,111250.0,0.06850511]
[1757464082301,0.94640126,111260.0,111250.0,0.06850511]
[1757464082707,0.94640126,111260.0,111250.0,0.11697778]
[1757464083202,0.94640126,111260.0,111250.0,0.06850511]
[1757464083397,0.94640126,111260.0,111250.0,0.07150511]
[1757464083608,0.95340126,111260.0,111250.0,0.07150511]
[1757464084011,1.06017772,111260.0,111250.0,0.07150511]
[1757464087916,1.06017772,111260.0,111250.0,0.07599511]
[1757464088516,1.41995418,111260.0,111250.0,0.03169775]
[1757464088715,1.41995418,111260.0,111250.0,0.00749]
[1757464089409,1.41995418,111260.0,111250.0,0.003]
[1757464101223,0.59167418,111260.0,111250.0,0.003]
[1757464101424,1.41979418,111260.0,111250.0,0.003]
[1757464107829,0.59167418,111260.0,111250.0,0.003]
[1757464108031,1.41915418,111260.0,111250.0,0.003]
[1757464108327,0.59167418,111260.0,111250.0,0.003]
[1757464108637,1.41907418,111260.0,111250.0,0.003]
[1757464109730,0.58867418,111260.0,111250.0,0.02628]
[1757464109932,0.23189772,111260.0,111250.0,0.03998]
[1757464110124,1.05917772,111260.0,111250.0,0.03998]
[1757464110931,0.23189772,111260.0,111250.0,0.03998]
[1757464111121,1.05933772,111260.0,111250.0,0.03998]
[1757464117135,1.05933772,111260.0,111250.0,0.06418775]
[1757464117831,1.05933772,111260.0,111250.0,0.03998]
[1757464118136,0.23189772,111260.0,111250.0,0.31418775]
[1757464118339,0.23189772,111260.0,111250.0,0.32229511]
[1757464118340,1.05845772,111260.0,111250.0,0.32229511]
[1757464118537,1.05845772,111260.0,111250.0,0.3465789]
[1757464119432,1.05845772,111260.0,111250.0,0.0965789]
[1757464119730,1.05845772,111260.0,111250.0,0.06426379]
[1757464122030,0.23189772,111260.0,111250.0,0.06426379]
[1757464122233,1.05797772,111260.0,111250.0,0.06426379]
[1757464122428,0.0183448,111260.0,111250.0,0.47436335]
[1757464122633,1.00452436,111260.0,111250.0,0.48239467]
[1757464123032,1.16462392,111260.0,111250.0,0.48239467]
[1757464123232,1.16462392,111260.0,111250.0,0.32229511]
[1757464123432,1.16462392,111260.0,111250.0,0.48239467]
[1757464123638,1.16462392,111260.0,111250.0,0.32229511]
[1757464126434,1.16450392,111260.0,111250.0,0.32229511]
[1757464129436,1.16450392,111260.0,111250.0,0.32678511]
[1757464131243,0.8443048,111260.0,111250.0,0.32678511]
[1757464131438,1.16450392,111260.0,111250.0,0.32678511]
[1757464132650,1.57760348,111260.0,111250.0,0.03980511]
[1757464132840,1.57760348,111260.0,111250.0,0.03173038]
[1757464133040,1.57760348,111260.0,111250.0,0.00749]
[1757464134144,1.57744348,111260.0,111250.0,0.00749]
[1757464135943,0.75164348,111260.0,111250.0,0.00749]
[1757464136150,1.57744348,111260.0,111250.0,0.00749]
[1757464136351,1.57720348,111260.0,111250.0,0.00749]
[1757464136551,1.57712348,111260.0,111250.0,0.00749]
[1757464138750,0.74864348,111260.0,111250.0,0.02945]
[1757464138950,0.8323348,111260.0,111250.0,0.45247956]
[1757464139150,0.99243436,111260.0,111250.0,0.48479467]
[1757464139352,0.8323348,111260.0,111250.0,0.48479467]
[1757464139651,0.8325348,111260.0,111250.0,0.50095223]
[1757464143858,1.00384436,111260.0,111250.0,0.09085267]
[1757464144061,1.00384436,111260.0,111250.0,0.25095223]
[1757464144461,1.16394392,111260.0,111250.0,0.09085267]
[1757464144757,1.16394392,111260.0,111250.0,0.12315242]
[1757464144960,1.41394392,111260.0,111250.0,0.04238]
[1757464145160,1.41394392,111260.0,111250.0,0.07467975]
[1757464145361,1.41394392,111260.0,111250.0,0.04238]
[1757464147364,0.33854392,111260.0,111250.0,0.04238]
[1757464147565,0.0071348,111260.0,111250.0,0.45247956]
[1757464147765,0.8319748,111260.0,111250.0,0.53325198]
[1757464148164,0.99207436,111260.0,111250.0,0.53325198]
[1757464148965,1.00328436,111260.0,111250.0,0.53325198]
[1757464149263,1.00328436,111260.0,111250.0,0.48477931]
[1757464150571,0.8431848,111260.0,111250.0,0.48477931]
[1757464150769,1.00328436,111260.0,111250.0,0.48477931]
[1757464153973,1.16338392,111260.0,111250.0,0.48477931]
[1757464154973,1.16338392,111260.0,111250.0,0.04238]
[1757464155171,1.41338392,111260.0,111250.0,0.04238]
[1757464155472,1.41338392,111260.0,111250.0,0.05544915]
[1757464156370,1.41334392,111260.0,111250.0,0.05544915]
[1757464157361,0.8319348,111260.0,111250.0,0.21554871]
[1757464157566,0.8349748,111260.0,111250.0,0.05544915]
[1757464157766,0.99507436,111260.0,111250.0,0.21554871]
[1757464158170,0.99507436,111260.0,111250.0,0.24784846]
[1757464158473,0.8349748,111260.0,111250.0,0.24784846]
[1757464158663,0.16723436,111260.0,111250.0,0.24784846]
[1757464158867,0.8349348,111260.0,111250.0,0.24784846]
[1757464159068,0.99503436,111260.0,111250.0,0.24784846]
[1757464159476,0.8349348,111260.0,111250.0,0.24784846]
[1757464159768,0.0071348,111260.0,111250.0,0.24784846]
[1757464159973,0.8347748,111260.0,111250.0,0.49784846]
[1757464161066,0.8347748,111260.0,111250.0,0.49784726]
[1757464161575,1.00608436,111260.0,111250.0,0.24784726]
[1757464162977,0.8347748,111260.0,111250.0,0.24784726]
[1757464163177,0.99487436,111260.0,111250.0,0.24784726]
[1757464163475,0.16723436,111260.0,111250.0,0.24784726]
[1757464163676,0.99483436,111260.0,111250.0,0.24784726]
[1757464163875,0.99479436,111260.0,111250.0,0.24784726]
[1757464164978,0.16723436,111260.0,111250.0,0.24784726]
[1757464165173,0.99491436,111260.0,111250.0,0.29631993]
[1757464165577,0.99491436,111260.0,111250.0,0.24784726]
[1757464165776,0.99491436,111260.0,111250.0,0.29631993]
[1757464165979,0.16723436,111260.0,111250.0,0.29631993]
[1757464166175,0.99479436,111260.0,111250.0,0.29631993]
[1757464166376,0.0071348,111260.0,111250.0,0.54631993]
[1757464166576,0.0071348,111260.0,111250.0,0.51402018]
[1757464166779,0.8345748,111260.0,111250.0,0.67411974]
[1757464167277,0.8345748,111260.0,111250.0,0.51402018]
[1757464167675,0.0071348,111260.0,111250.0,0.76400234]
[1757464167880,0.17140956,111300.0,111290.0,0.03527]
[1757464168076,0.33140912,111300.0,111290.0,0.04833795]
[1757464168280,1.15864912,111300.0,111290.0,0.04833795]
[1757464169376,1.16164912,111300.0,111290.0,0.05882795]
[1757464169578,0.58440912,111300.0,111290.0,0.05882795]
[1757464169777,1.41168912,111300.0,111290.0,0.05882795]
[1757464169979,1.41568912,111300.0,111290.0,0.06682795]
[1757464170283,1.41568912,111300.0,111290.0,0.05376]
[1757464171284,1.16548912,111300.0,111290.0,0.05376]
[1757464171980,1.00538956,111300.0,111290.0,0.05376]
[1757464172184,1.16548912,111300.0,111290.0,0.05376]
[1757464173089,1.00510956,111300.0,111290.0,0.05376]
[1757464173488,1.16520912,111300.0,111290.0,0.05376]
[1757464173682,0.01821,111300.0,111290.0,0.21385956]
[1757464173989,1.00486956,111300.0,111290.0,0.21385956]
[1757464174382,1.00486956,111300.0,111290.0,0.05376]
[1757464174588,1.00486956,111300.0,111290.0,0.21385956]
[1757464177290,0.17830956,111300.0,111290.0,0.21385956]
[1757464177486,1.00438956,111300.0,111290.0,0.21385956]
[1757464177680,0.17830956,111300.0,111290.0,0.21385956]
[1757464177882,1.00438956,111300.0,111290.0,0.21385956]
[1757464178791,1.57458868,111300.0,111290.0,0.01849]
[1757464179391,1.32458868,111300.0,111290.0,0.01849]
[1757464179993,1.57458868,111300.0,111290.0,0.01849]
[1757464184492,1.41439807,111300.0,111290.0,0.01849]
[1757464193600,1.41439807,111300.0,111290.0,0.014]
[1757464200103,1.46256535,111300.0,111290.0,0.014]
[1757464201003,1.56256535,111300.0,111280.0,0.0047248]
[1757464201202,1.56256535,111300.0,111280.0,0.0002348]
[1757464201203,0.36827535,111290.0,111280.0,0.0002348]
[1757464201398,0.36827535,111290.0,111280.0,0.0001348]
[1757464201598,0.26157266,111290.0,111280.0,0.0001348]
[1757464202193,0.67010807,111290.0,111270.0,0.0001]
[1757464202398,0.93154269,111280.0,111270.0,0.0001]
[1757464202603,0.93154269,111280.0,111260.0,0.00459]
[1757464202799,0.97970997,111280.0,111260.0,0.00459]
[1757464203195,0.93154269,111280.0,111260.0,0.00459]
[1757464203395,0.97970997,111280.0,111260.0,0.00459]
[1757464203705,0.97984477,111280.0,111260.0,0.00459]
[1757464204904,0.98284477,111280.0,111260.0,0.00459]
[1757464205299,0.98284477,111280.0,111260.0,0.0177]
[1757464205506,1.03824538,111270.0,111260.0,0.0177]
[1757464205700,1.03824538,111270.0,111260.0,0.0176]
[1757464206198,0.21340538,111270.0,111260.0,0.0176]
[1757464206399,0.92204538,111270.0,111260.0,0.0176]
[1757464206908,1.04224538,111270.0,111260.0,0.0176]
[1757464208003,1.04524538,111270.0,111260.0,0.0176]
[1757464209607,1.05432151,111270.0,111260.0,0.0176]
[1757464211107,0.22948151,111270.0,111260.0,0.04089]
[1757464211307,0.93616151,111270.0,111260.0,0.04089]
[1757464211998,0.22948151,111270.0,111260.0,0.04089]
[1757464212204,0.82941882,111270.0,111260.0,0.04089]
[1757464212902,0.82941882,111270.0,111260.0,0.0176]
[1757464213107,0.93612151,111270.0,111260.0,0.0176]
[1757464213608,0.93612151,111270.0,111260.0,0.00449]
[1757464214000,0.93612151,111270.0,111250.0,0.03603]
[1757464214201,0.21340538,111260.0,111250.0,0.03603]
[1757464214400,0.21340538,111260.0,111250.0,0.03593]
[1757464215296,0.21340538,111260.0,111250.0,0.04042]
[1757464216708,0.52724538,111260.0,111250.0,0.04042]
[1757464217308,0.53124538,111260.0,111250.0,0.04042]
[1757464217502,0.82940538,111260.0,111250.0,0.04042]
[1757464218609,1.04528538,111260.0,111250.0,0.04042]
[1757464220008,0.11370269,111260.0,111250.0,0.04042]
[1757464220210,0.11370269,111260.0,111250.0,0.29042]
[1757464220407,0.43916538,111260.0,111250.0,0.29042]
[1757464233128,1.04520538,111260.0,111250.0,0.29042]
[1757464239420,1.04520538,111260.0,111250.0,0.04042]
[1757464242134,1.06441531,111260.0,111250.0,0.04042]
[1757464244533,1.17126899,111260.0,111250.0,0.04042]
[1757464250832,0.85100993,111260.0,111250.0,0.04042]
[1757464251037,1.17126899,111260.0,111250.0,0.04042]
[1757464254938,0.34646899,111260.0,111250.0,0.04042]
[1757464255238,1.17114899,111260.0,111250.0,0.04042]
[1757464258143,0.85088993,111260.0,111250.0,0.04042]
[1757464258337,1.17114899,111260.0,111250.0,0.04042]
[1757464260845,0.34646899,111260.0,111250.0,0.04042]
[1757464261041,0.34646899,111260.0,111250.0,0.20054953]
[1757464261242,1.01097946,111260.0,111250.0,0.45054953]
[1757464262144,1.00797946,111260.0,111250.0,0.45054953]
[1757464262344,1.01097946,111260.0,111250.0,0.45054953]
[1757464263049,1.00697946,111260.0,111250.0,0.45054953]
[1757464263249,1.00997946,111260.0,111250.0,0.45054953]
[1757464263445,0.02520993,111260.0,111250.0,0.45054953]
[1757464263649,0.02520993,111260.0,111250.0,0.61067906]
[1757464263951,0.02620993,111260.0,111250.0,0.61067906]
[1757464264352,0.02620993,111260.0,111250.0,0.70056116]
[1757464264651,0.01920993,111260.0,111250.0,0.70056116]
[1757464264853,0.00520993,111260.0,111250.0,0.70056116]
[1757464265051,2.79878433,111280.0,111270.0,0.03617]
[1757464265357,1.00697433,111280.0,111270.0,0.19629953]
[1757464265549,0.0001348,111280.0,111270.0,0.60642906]
[1757464265850,0.0001348,111280.0,111270.0,0.44629953]
[1757464266044,0.0001348,111280.0,111270.0,0.60642906]
[1757464266538,0.0001348,111280.0,111270.0,0.45078953]
[1757464266945,0.0041348,111280.0,111270.0,0.45078953]
[1757464267147,0.0071348,111280.0,111270.0,0.45378953]
[1757464267543,0.0071348,111280.0,111270.0,0.29366]
[1757464267741,0.0071348,111280.0,111270.0,0.45378953]
[1757464269352,0.34894386,111280.0,111270.0,0.04366]
[1757464269647,0.60594386,111280.0,111270.0,0.03042]
[1757464270352,0.60594386,111280.0,111270.0,0.00749]
[1757464271143,0.76607339,111280.0,111270.0,0.00749]
[1757464271543,0.76607339,111280.0,111270.0,0.00049]
[1757464271544,0.81424067,111280.0,111270.0,0.00049]
[1757464272347,0.76607339,111280.0,111270.0,0.00049]
[1757464273343,0.02497,111270.0,111260.0,0.0001]
[1757464273552,0.02446,111260.0,111250.0,0.0001]
[1757464273752,0.02446,111260.0,111240.0,0.0139]
[1757464273952,1.00854953,111250.0,111240.0,0.03583]
[1757464274251,1.00854953,111250.0,111240.0,0.03573]
[1757464274754,1.16867906,111250.0,111240.0,0.03573]
[1757464274955,1.00854953,111250.0,111240.0,0.03573]
[1757464275854,1.01154953,111250.0,111240.0,0.03573]
[1757464276550,1.01554953,111250.0,111240.0,0.03973]
[1757464276946,1.03475431,111250.0,111240.0,0.03973]
[1757464281951,1.03474969,111250.0,111240.0,0.03973]
[1757464285459,1.03474647,111250.0,111240.0,0.03973]
[1757464286156,1.01554953,111250.0,111240.0,0.03973]
[1757464286857,1.03474697,111250.0,111240.0,0.03973]
[1757464287151,1.01554953,111250.0,111240.0,0.03973]
[1757464287358,1.03474607,111250.0,111240.0,0.03973]
[1757464287656,1.01554953,111250.0,111240.0,0.03973]
[1757464287852,1.03474613,111250.0,111240.0,0.03973]
[1757464291459,0.20778613,111250.0,111240.0,0.03973]
[1757464291661,1.03346613,111250.0,111240.0,0.03973]
[1757464291854,1.01426953,111250.0,111240.0,0.03973]
[1757464292559,0.18858953,111250.0,111240.0,0.03973]
[1757464292859,1.01442953,111250.0,111240.0,0.03973]
[1757464293056,0.18858953,111250.0,111240.0,0.19985953]
[1757464293257,1.01454953,111250.0,111240.0,0.19985953]
[1757464296171,1.0337397,111250.0,111240.0,0.19985953]
[1757464297864,0.04765017,111250.0,111240.0,0.19985953]
[1757464298161,1.0334997,111250.0,111240.0,0.19985953]
[1757464300262,1.0334997,111250.0,111240.0,0.03973]
[1757464300456,0.0262338,111250.0,111240.0,0.60998906]
[1757464300662,0.007,111250.0,111240.0,0.65846522]
[1757464301064,0.007,111250.0,111240.0,0.66755956]
[1757464301457,0.007,111250.0,111240.0,0.91757899]
[1757464301663,0.007,111250.0,111240.0,0.86910283]
[1757464303059,0.007,111250.0,111240.0,0.7089733]
[1757464304463,0.007,111250.0,111240.0,0.6190834]
[1757464306167,0.007,111250.0,111240.0,0.66753319]
[1757464306465,0.03176946,111290.0,111280.0,0.03617]
[1757464306658,0.04184122,111290.0,111280.0,0.14283694]
[1757464306864,0.86744122,111290.0,111280.0,0.14283694]
[1757464307762,0.04184122,111290.0,111280.0,0.14283694]
[1757464308065,0.86952122,111290.0,111280.0,0.14683694]
[1757464308667,0.87152122,111290.0,111280.0,0.14983694]
[1757464308964,0.87156122,111290.0,111280.0,0.14983694]
[1757464310556,0.87144122,111290.0,111280.0,0.14983694]
[1757464313058,0.04584122,111290.0,111280.0,0.14983694]
[1757464313261,0.87120122,111290.0,111280.0,0.14983694]
[1757464321990,0.87120122,111290.0,111280.0,0.04317]
[1757464322290,0.87120122,111290.0,111280.0,0.14983694]
[1757464322890,0.87120122,111290.0,111280.0,0.04317]
[1757464323090,0.87120122,111290.0,111280.0,0.14983694]
[1757464323793,0.87176122,111290.0,111280.0,0.14983694]
[1757464327496,0.98363816,111290.0,111280.0,0.007]
[1757464327794,0.98363816,111290.0,111280.0,0.02929]
[1757464327995,0.97842816,111290.0,111280.0,0.04317]
[1757464328496,0.87176122,111290.0,111280.0,0.04317]
[1757464328691,0.97842816,111290.0,111280.0,0.04317]
[1757464333499,0.97766816,111290.0,111280.0,0.14983694]
[1757464334093,0.87084122,111290.0,111280.0,0.14983694]
[1757464334998,0.87080767,111290.0,111280.0,0.14983694]
[1757464336594,0.97747461,111290.0,111280.0,0.14983694]
[1757464338203,0.87080767,111290.0,111280.0,0.14983694]
[1757464338501,0.97747461,111290.0,111280.0,0.14983694]
[1757464338896,0.15247461,111290.0,111280.0,0.14983694]
[1757464339095,0.97795461,111290.0,111280.0,0.14983694]
[1757464339505,0.97795461,111290.0,111280.0,0.04317]
[1757464339802,0.97795461,111290.0,111280.0,0.14983694]
[1757464340700,0.95876694,111290.0,111280.0,0.14983694]
[1757464340899,0.97797202,111290.0,111280.0,0.14983694]
[1757464341100,0.87130508,111290.0,111280.0,0.14983694]
[1757464343206,0.04582508,111290.0,111280.0,0.14983694]
[1757464343399,0.87134508,111290.0,111280.0,0.14983694]
[1757464343898,0.87134508,111290.0,111280.0,0.04317]
[1757464344097,0.87134508,111290.0,111280.0,0.14983694]
[1757464348114,0.04582508,111290.0,111280.0,0.14983694]
[1757464348411,0.87086508,111290.0,111280.0,0.14983694]
[1757464350306,0.87086508,111290.0,111280.0,0.04317]
[1757464350508,0.87086508,111290.0,111280.0,0.14983694]
[1757464359923,0.04582508,111290.0,111280.0,0.14983694]
[1757464360121,0.87050508,111290.0,111280.0,0.14983694]
[1757464360419,0.04582508,111290.0,111280.0,0.25650388]
[1757464360614,0.02320508,111290.0,111280.0,0.55495243]
[1757464361515,0.02320508,111290.0,111280.0,0.66161937]
[1757464362118,0.02320508,111290.0,111280.0,0.55495243]
[1757464362320,0.02337548,111290.0,111280.0,0.50650388]
[1757464363120,0.02337548,111290.0,111280.0,0.61317082]
[1757464363718,0.02337548,111290.0,111280.0,0.70302892]
[1757464363918,0.0001,111300.0,111290.0,0.03562]
[1757464364122,0.3924,111310.0,111300.0,0.03562]
[1757464364319,0.3923,111310.0,111300.0,0.24895388]
[1757464364515,1.86110728,111320.0,111300.0,0.24895388]
[1757464364824,2.70844728,111320.0,111310.0,0.14228694]
[1757464365016,2.70834728,111320.0,111310.0,0.14228694]
[1757464366324,2.86825886,111320.0,111310.0,0.19553158]
[1757464366623,2.86825886,111320.0,111310.0,0.20153158]
[1757464367518,2.70834728,111320.0,111310.0,0.20153158]
[1757464367723,0.8483,111320.0,111310.0,0.37044316]
[1757464370122,0.8483,111320.0,111310.0,0.37964897]
[1757464371225,0.8483,111320.0,111310.0,0.21973739]
[1757464372520,0.8483,111320.0,111310.0,0.37964897]
[1757464373021,0.8483,111320.0,111310.0,0.21973739]
[1757464375627,0.0237,111320.0,111310.0,0.21973739]
[1757464375828,0.84814,111320.0,111310.0,0.21973739]
[1757464380931,0.84814,111320.0,111310.0,0.37964897]
[1757464381128,0.84814,111320.0,111310.0,0.21973739]
[1757464382438,0.84814,111320.0,111310.0,0.37964897]
[1757464382841,0.84814,111320.0,111310.0,0.21973739]
[1757464384842,0.84814,111320.0,111310.0,0.37964897]
[1757464385742,0.0237,111320.0,111310.0,0.37964897]
[1757464387142,0.001,111320.0,111310.0,0.37964897]
[1757464387536,0.001,111320.0,111310.0,0.62964897]
[1757464389141,0.001,111320.0,111310.0,0.67809752]
[1757464389543,0.001,111320.0,111310.0,0.8380091]
[1757464389736,0.001,111320.0,111310.0,0.67809752]
[1757464393242,0.0001,111330.0,111320.0,0.03668]
[1757464393443,0.01941046,111330.0,111320.0,0.35650316]
[1757464395544,0.02141046,111330.0,111320.0,0.35650316]
[1757464396341,0.03241046,111330.0,111320.0,0.35750316]
[1757464396547,0.05475046,111330.0,111320.0,0.37450316]
[1757464397042,0.04375046,111330.0,111320.0,0.39450316]